Cogmind - Beta 15 @@@ ROGUE MODE // 2025.07.23 @ 18:31:40 Player: jumpy Result: Destroyed by X-87 Electro with Compact HERF Cannon Performance ------------- Evolutions (8) 4000 Regions Visited (14) 2800 Robots Destroyed (108) 540 Value Destroyed (4739) 4739 Prototype IDs (12) 240 Alien Tech Used (0) 0 Bonus (0) 0 TOTAL SCORE: 12319 Bonus ------- None Cogmind --------- Core Integrity 0/1450 Matter 255/300 Energy 84/100 System Corruption 13% Temperature Cool (0) Movement Core (100) Ox1 Location -2/Testing Parts ------- > --- POWER (2) -------- (None) > --- PROPULSION (4) --- (None) > --- UTILITY (13) ----- (None) > --- WEAPON (4) ------- Vibroblade > --- INVENTORY (5) ---- Advanced Terrain Scan Processor Improved Transmission Jammer Enhanced Hardcell Cannon Compact Tesla Bomb Launcher Peak State ------------ > --- POWER ------------ Micro Antimatter Reactor Light Quantum Reactor > --- PROPULSION ------- Armored Huge Wheel Centrium Wheel Centrium Wheel > --- UTILITY ---------- Advanced Heat Sink Advanced Heat Sink 2N-1CE's Frost Array Huge Storage Unit Advanced Visual Processing Unit Melee Analysis Suite Improved Melee Analysis Suite Improved Melee Analysis Suite Improved Kinecellerator Experimental Transmission Jammer Centrium Heavy Armor Plating EM Shield > --- WEAPON ----------- Heavy Proton Cannon Vibroblade Vibroblade Vibroblade > --- INVENTORY -------- Antimatter Reactor Particle Reactor Micro Antimatter Reactor Quantum Reactor Myomer Leg Myomer Leg Myomer Leg Biometal Leg Centrium Wheel Advanced Terrain Scan Processor Improved Transmission Jammer Heavy Armor Plating Lightning Gun Phase Gun Heavy Plasma Cannon Enhanced Nova Cannon Enhanced Hardcell Cannon Compact Tesla Bomb Launcher Vibroblade Vibroblade [Rating: 158] Favorites ----------- Power Light Angular Momentum Engine Engine Light Angular Momentum Engine Power Core Micro Nuclear Core Reactor Antimatter Reactor Propulsion Armored Huge Wheel Leg Aluminum Leg Wheel Armored Huge Wheel Utility Improved Melee Analysis Suite Device Seismic Detector Storage Medium Storage Unit Processor Improved Melee Analysis Suite Protection Improved Utility Shielding Weapon Phasing Sabre Energy Gun Medium Laser Energy Cannon EM Pulse Cannon Ballistic Gun Assault Rifle Ballistic Cannon Advanced Assault Cannon Launcher Heavy Missile Launcher Impact Weapon Heavy Mace Slashing Weapon Phasing Sabre Build | -11 -10 -9 -8 -7 -7 -7 -6 -6 -6 -5 -4 -3 -2 -2 ------- Run | Yrd Mat Mat Mat Fac Was Fac Fac Low Low Fac Fac Res Res Tes Slots Evolved 16 | . . 2 2 2 . . 2 . . 2 2 2 2 . Power 1 | . . . . . . . 1 . . . . . . . Propulsion 2 | . . 1 1 . . . . . . . . . . . Utility 11 | . . 1 1 1 . . 1 . . 2 1 2 2 . Weapon 2 | . . . . 1 . . . . . . 1 . . . Parts Attached 125 | 8 2 3 6 11 1 23 5 7 . 6 6 6 25 16 Power 24 | 1 . 2 . . . 3 2 2 . 2 2 1 4 5 Engine 10 | 1 . 2 . . . 3 2 1 . 1 . . . . Core 2 | . . . . . . . . 1 . 1 . . . . Reactor 12 | . . . . . . . . . . . 2 1 4 5 Propulsion 26 | 2 . 1 1 5 1 4 . 2 . . 2 . 3 5 Treads . | . . . . . . . . . . . . . . . Leg 14 | 2 . 1 1 5 1 . . . . . . . . 4 Wheel 12 | . . . . . . 4 . 2 . . 2 . 3 1 Hover . | . . . . . . . . . . . . . . . Flight . | . . . . . . . . . . . . . . . Utility 35 | 2 . . 2 2 . 8 2 1 . 3 2 3 8 2 Device 16 | 1 . . . 1 . 2 . . . 2 1 2 6 1 Storage 5 | 1 . . 1 . . 1 . . . 1 1 . . . Processor 6 | . . . . 1 . 2 2 . . . . . 1 . Hackware . | . . . . . . . . . . . . . . . Protection 8 | . . . 1 . . 3 . 1 . . . 1 1 1 Artifact . | . . . . . . . . . . . . . . . Weapon 40 | 3 2 . 3 4 . 8 1 2 . 1 . 2 10 4 Energy Gun 6 | 1 . . . . . . . . . . . 2 3 . Energy Cannon 12 | . 2 . 3 2 . 1 1 . . 1 . . 1 1 Ballistic Gun 2 | 2 . . . . . . . . . . . . . . Ballistic Cannon 5 | . . . . . . 2 . . . . . . 3 . Launcher 3 | . . . . . . 1 . . . . . . . 2 Special Weapon . | . . . . . . . . . . . . . . . Impact Weapon 3 | . . . . . . 3 . . . . . . . . Slashing Weapon 9 | . . . . 2 . 1 . 2 . . . . 3 1 Piercing Weapon . | . . . . . . . . . . . . . . . Special Melee Weapon . | . . . . . . . . . . . . . . . Unidentified Prototypes 12 | . . . 1 . . . . . . 1 . 1 4 5 Corrupted Parts 1 | . . 1 . . . . . . . . . . . . System Corruption 7 | . . 7 . . . . . . . . . . . . Parts Lost 71 | . . . . 6 4 5 1 6 . 1 9 . 12 27 Power 17 | . . . . . 1 . 1 3 . . 2 . 3 7 Propulsion 20 | . . . . 2 2 2 . 2 . . 2 . 2 8 Utility 19 | . . . . 2 . 2 . . . . 3 . 2 10 Weapon 15 | . . . . 2 1 1 . 1 . 1 2 . 5 2 Highest Loss Streak 18 | . . . . 4 4 2 1 6 . 1 8 . 3 18 To Critical Strikes 1 | . . . . . . . . . . . 1 . . . Average Backups 9 | 3 7 8 7 7 8 5 6 6 7 7 8 9 14 19 Power 1 | . 1 1 1 1 . 1 . . . . 1 1 1 3 Propulsion 3 | 1 2 1 . 2 3 1 2 2 3 2 2 4 6 4 Utility 1 | . 2 2 2 2 3 1 1 1 1 1 2 2 1 3 Weapon 2 | 1 2 3 4 2 . . 2 2 3 3 2 2 4 8 Tool/Special . | . . . . . . . . . . . . . . . Unused Backups 28 | . . 4 1 2 2 11 . 1 . 2 . . 1 4 Power 5 | . . 1 . . 1 3 . . . . . . . . Propulsion 9 | . . 2 . 2 . 1 . 1 . 2 . . . 1 Utility 3 | . . . . . . 3 . . . . . . . . Weapon 11 | . . 1 1 . 1 4 . . . . . . 1 3 Tool/Special . | . . . . . . . . . . . . . . . Average Slot Usage (%) 75 | . 100 79 84 80 66 64 85 80 80 80 79 56 77 74 Engine 5 | . 14 11 9 7 5 4 13 8 6 9 4 . . . Reactor 2 | . . . . . . . . . . . 4 8 7 7 Leg 6 | . 28 24 36 29 23 . . . . . . . . 1 Wheel 9 | . . . . . . 14 13 13 13 11 9 9 9 10 Device 7 | . 14 11 9 8 5 2 . . . 5 9 8 17 16 Storage 6 | . 14 11 9 7 5 5 6 6 6 5 5 4 4 3 Processor 10 | . . . . 3 5 6 19 20 20 17 15 14 15 14 Protection 6 | . . . 3 2 . 11 13 13 13 11 7 . 4 3 Energy Cannon 5 | . 8 22 18 10 5 3 6 . . 1 4 . 1 2 Ballistic Cannon 1 | . . . . . . 4 . . . . . . 3 . Impact Weapon 2 | . . . . . . 7 6 6 6 3 . . . . Slashing Weapon 7 | . . . . 9 12 . 6 8 13 11 14 9 8 12 Peak Build Rating 158 | 7 10 12 17 22 25 49 58 58 56 74 89 98 152 158 Average Rating 59 | 5 7 11 14 19 19 37 56 54 56 64 79 71 123 128 On Entrance 44 | . 7 10 12 16 21 . 48 58 56 56 73 58 98 149 Naked Turns 37 | . . . . . 23 . . . . . . . . 14 Heaviest Build 167 | 15 19 21 43 45 39 44 56 56 35 62 133 133 167 161 Greatest Support 103 | 20 20 30 40 40 50 56 56 56 56 56 56 56 60 103 Greatest Overweight (x) 7 | . . 2 1 1 1 1 . . . 1 2 2 5 7 Average Overweight (x) . | . . . . . . . . . . . 1 1 2 2 Largest Inventory Capacity 25 | 8 8 8 15 15 15 10 10 10 10 15 25 25 25 25 Average Capacity 14 | 7 8 8 8 15 13 9 10 10 10 10 23 25 25 24 Most Carried 23 | 7 8 8 8 10 10 10 10 10 9 10 14 11 20 23 Average Carried 10 | 3 7 7 7 7 8 7 9 8 8 8 10 10 15 19 Final Capacity 25 | 8 8 8 15 15 5 10 10 10 10 15 25 25 25 5 Final Carried 20 | 7 8 8 8 10 5 10 10 8 9 8 10 11 20 4 Class Distribution -------------------- 48% | Gladiator 21% | Mutant 15% | Scavenger-Mutant 12% | Scavenger-Gladiator Dominant Class ---------------- Mutant | -10/Materials Mutant | -9/Materials Scavenger-Mutant | -8/Materials Scavenger-Mutant | -7/Factory Scavenger-Mutant | -7/Waste Mutant | -7/Factory Gladiator | -6/Factory Gladiator | -6/Lower Caves Gladiator | -6/Lower Caves Gladiator | -5/Factory Gladiator | -4/Factory Gladiator | -3/Research Scavenger-Gladiator | -2/Research Scavenger-Gladiator | -2/Testing Resources | -11 -10 -9 -8 -7 -7 -7 -6 -6 -6 -5 -4 -3 -2 -2 ----------- Run | Yrd Mat Mat Mat Fac Was Fac Fac Low Low Fac Fac Res Res Tes Matter Collected 2269 | 298 . 73 57 168 . 542 49 348 . . 165 20 413 136 Remotely . | . . . . . . . . . . . . . . . Salvage Created 5006 | 164 31 373 57 511 . 834 70 362 . . 313 95 1059 1137 Parts 255 | 13 3 29 4 26 . 30 3 13 . . 17 4 56 57 Haulers Intercepted 4 | . . 1 . . . 1 . . . . . . 1 1 Recyclers Shooed . | . . . . . . . . . . . . . . . Parts Field Recycled . | . . . . . . . . . . . . . . . Retrieved Matter . | . . . . . . . . . . . . . . . Parts Self-Destructed 11 | . . . . . . . . 11 . . . . . . Prevented 1 | . . . . . . . . 1 . . . . . . Kills | -11 -10 -9 -8 -7 -7 -7 -6 -6 -6 -5 -4 -3 -2 -2 ------- Run | Yrd Mat Mat Mat Fac Was Fac Fac Low Low Fac Fac Res Res Tes Combat Hostiles Destroyed 84 | . 1 8 1 8 . 17 3 12 . . 5 1 15 13 Melee 48 | . . . . 4 . 5 2 5 . . 5 1 13 13 Guns 1 | . 1 . . . . . . . . . . . . . Cannons 18 | . . 8 1 3 . 4 . . . . . . 2 . AOE 11 | . . . . 1 . 5 . 5 . . . . . . Classes Destroyed 15 | 2 2 4 . 2 . 3 . 1 . . . . 1 . Worker 5 | . . . . 2 . 1 . . . . . . . 2 Builder 3 | . . . . . . 3 . . . . . . . . Tunneler 4 | 4 . . . . . . . . . . . . . . Hauler 4 | . . 1 . . . 1 . . . . . . 1 1 Recycler 2 | 1 . . . . . 1 . . . . . . . . Operator 1 | . . 1 . . . . . . . . . . . . Watcher 5 | . 1 . . 1 . 2 . . . . . . 1 . Swarmer 21 | . 1 3 . . . 4 3 6 . . . . 4 . Grunt 30 | . . 3 . 6 . 2 . 4 . . 1 . 5 9 Duelist 1 | . . . . . . 1 . . . . . . . . Sentry 11 | . . 2 1 1 . 4 . 1 . . . 1 1 . Hunter 3 | . . . . . . 1 . . . . 2 . . . Programmer 16 | . . . . 1 . 5 . . . . 2 . 4 4 Behemoth 1 | . . . . . . . . . . . . . 1 . Thief 1 | . . . . . . . . 1 . . . . . . Best Kill Streak 5 | 5 2 4 1 3 . 5 2 4 . . 3 1 5 4 Combat Bots Only 5 | . 1 3 1 3 . 5 2 4 . . 3 1 4 3 Max Kills in Single Turn 3 | 1 1 1 1 1 . 3 1 3 . . 1 1 1 1 Gunslinging . | . . . . . . . . . . . . . . . Exploded 3 | . . . . 1 . 3 . 3 . . . . . . Melee 1 | . . . . 1 . 1 1 1 . . 1 1 1 1 Uniques/NPCs Destroyed . | . . . . . . . . . . . . . . . Combat | -11 -10 -9 -8 -7 -7 -7 -6 -6 -6 -5 -4 -3 -2 -2 -------- Run | Yrd Mat Mat Mat Fac Was Fac Fac Low Low Fac Fac Res Res Tes Hostile Shots Fired 1126 | . 3 18 10 117 4 300 10 91 . 4 63 12 167 327 Missed 330 | . 2 5 5 42 1 92 2 20 . 1 14 3 45 98 Hits 796 | . 1 13 5 75 3 208 8 71 . 3 49 9 122 229 Melee 12 | . . . 2 . 3 6 . 1 . . . . . . Projectile 784 | . 1 13 3 75 . 202 8 70 . 3 49 9 122 229 Critical Strikes 38 | . . 1 2 1 1 5 1 5 . . 2 1 4 15 Part Disruptions 2 | . . . . . . 1 . . . . . . 1 . Damage Taken 14243 | . 6 144 105 836 121 2236 136 1180 . 64 1028 250 3024 5113 Core 2466 | . . 19 64 108 . 383 15 182 . . 178 57 210 1250 Absorbed by Shields . | . . . . . . . . . . . . . . . Redirected to Shielding 216 | . . . . . . 58 . 26 . 14 10 . 108 . Ignored by Resistances 378 | . . . . . . . . . . . . . 157 221 Regen/Repaired (Parts) 569 | . . . . . . . 117 . . . . . . 452 Core Remaining (%) 85 | 100 100 95 88 . . 29 . . 76 100 84 95 . . Volleys Fired 119 | 11 6 15 2 22 . 36 . 6 . 6 . . 15 . Largest 2 | 2 2 2 2 2 . 2 . 1 . 1 . . 2 . Hottest 178 | 70 70 112 126 126 . 80 . 39 . 98 . . 178 . Shots Fired 185 | 22 11 30 4 32 . 46 . 6 . 6 . . 27 1 Gun 33 | 22 11 . . . . . . . . . . . . . Cannon 138 | . . 30 4 32 . 38 . . . 6 . . 27 1 Launcher 14 | . . . . . . 8 . 6 . . . . . . Special . | . . . . . . . . . . . . . . . Kinetic 71 | 11 6 . . . . 34 . . . . . . 19 1 Thermal 46 | 11 5 . . 12 . 4 . . . 6 . . 8 . Explosive 14 | . . . . . . 8 . 6 . . . . . . Electromagnetic 54 | . . 30 4 20 . . . . . . . . . . Robot Hit Streak 18 | 5 4 4 5 16 . 18 . 9 . . . . 8 1 Robot Miss Streak 3 | 3 2 3 1 2 . 3 . . . . . . 3 . Penetration Max . | . . . . . . . . . . . . . . . Secondary Targets . | . . . . . . . . . . . . . . . Shots Hit Robots 324 | 10 7 15 2 35 . 64 7 28 . . 20 6 68 62 Core Hits 138 | 6 3 11 1 15 . 22 2 17 . . 9 2 25 25 Critical Kills 2 | . . . . . . 2 . . . . . . . . Critical Parts Destroyed 6 | . . . . . . 4 . 2 . . . . . . Critical Strikes 43 | . . 1 . 5 . 8 1 7 . . 4 . 9 8 Blast 2 | . . . . . . 2 . . . . . . . . Corrupt 3 | . . 1 . 2 . . . . . . . . . . Smash 8 | . . . . . . 6 . 2 . . . . . . Sever 30 | . . . . 3 . . 1 5 . . 4 . 9 8 Melee Attacks 269 | . . . . 13 . 52 8 28 . 1 25 6 56 80 Impact 51 | . . . . . . 42 2 7 . . . . . . Slashing 218 | . . . . 13 . 10 6 21 . 1 25 6 56 80 Piercing . | . . . . . . . . . . . . . . . Sneak Attacks 10 | . . . . . . 4 . . . . 2 . 2 2 Combat Hostiles 1 | . . . . . . . . . . . 1 . . . Follow-up Attacks 39 | . . . . . . 3 1 4 . . 6 1 7 17 Damage Inflicted 14711 | 146 85 342 48 1122 . 3040 297 1458 . . 967 279 3419 3508 Guns 231 | 146 85 . . . . . . . . . . . . . Cannons 2856 | . . 342 48 651 . 695 . . . . . . 1067 53 Explosions 1245 | . . . . 152 . 568 . 525 . . . . . . Melee 10379 | . . . . 319 . 1777 297 933 . . 967 279 2352 3455 Ramming . | . . . . . . . . . . . . . . . Kinetic 1586 | 95 48 . . . . 596 . . . . . . 794 53 Thermal 921 | 51 37 . . 461 . 99 . . . . . . 273 . Explosive 1093 | . . . . . . 568 . 525 . . . . . . Electromagnetic 732 | . . 342 48 342 . . . . . . . . . . Impact 1631 | . . . . . . 1401 54 176 . . . . . . Slashing 8748 | . . . . 319 . 376 243 757 . . 967 279 2352 3455 Piercing . | . . . . . . . . . . . . . . . Highest Corruption 26 | . . 7 . . 16 26 . . . . 3 . 5 13 Average Corruption 12 | . . 7 . . 10 19 . . . . 1 . 3 6 Corruption Purged . | . . . . . . . . . . . . . . . Corruption Blocked . | . . . . . . . . . . . . . . . Effects 99 | . . . . . 5 62 . . . . 2 . 11 19 Message Errors 30 | . . . . . 1 22 . . . . . . 3 4 Matter Fused 23 | . . . . . 2 16 . . . . . . 1 4 Heat Flow Errors 13 | . . . . . . 7 . . . . 2 . 1 3 Energy Discharges 10 | . . . . . 1 5 . . . . . . 1 3 Parts Rejected 2 | . . . . . . 1 . . . . . . 1 . Data Loss (minor) 11 | . . . . . 1 5 . . . . . . 2 3 Data Loss (major) 2 | . . . . . . . . . . . . . 2 . Misfires 3 | . . . . . . 2 . . . . . . . 1 Alerts 3 | . . . . . . 2 . . . . . . . 1 Misdirections 1 | . . . . . . 1 . . . . . . . . Weapon Failures 1 | . . . . . . 1 . . . . . . . . Overload Shots . | . . . . . . . . . . . . . . . Overflow Damage 1116 | . . . . 5 . 448 44 114 . . 104 . 163 238 Projectiles 39 | . . . . . . 21 . . . . . . 18 . Explosions 24 | . . . . . . 8 . 16 . . . . . . Melee 1053 | . . . . 5 . 419 44 98 . . 104 . 145 238 Knockbacks 11 | . . . . . . 7 1 3 . . . . . . Impact 7 | . . . . . . 4 1 2 . . . . . . Kinetic 3 | . . . . . . 3 . . . . . . . . Secondary 1 | . . . . . . . . 1 . . . . . . Self-Inflicted Damage 56 | . . . . 56 . . . . . . . . . . Shots 1 | . . . . 1 . . . . . . . . . . Rammed . | . . . . . . . . . . . . . . . Targets Rammed . | . . . . . . . . . . . . . . . Kicked . | . . . . . . . . . . . . . . . Crushed . | . . . . . . . . . . . . . . . Highest Temperature 343 | 36 45 161 60 288 . 263 . 42 . 231 256 . 343 247 Average Temperature 70 | 15 23 66 27 89 . 78 . 9 . 119 115 . 76 118 Received Heat Transfer 3137 | . . 36 45 324 . 360 . 541 . . 18 45 967 801 Siege Activations . | . . . . . . . . . . . . . . . Martial Activations . | . . . . . . . . . . . . . . . Shielding Activations . | . . . . . . . . . . . . . . . Robots Disrupted . | . . . . . . . . . . . . . . . Combat Hostiles . | . . . . . . . . . . . . . . . Robots Corrupted 10 | . . . . . . 7 1 2 . . . . . . Combat Hostiles 6 | . . . . . . 3 1 2 . . . . . . Parts Fried 14 | . . 1 . 2 . 10 . 1 . . . . . . Impact Corruptions 21 | . . . . . . 17 2 2 . . . . . . Robots Melted . | . . . . . . . . . . . . . . . Combat Hostiles . | . . . . . . . . . . . . . . . Parts Melted . | . . . . . . . . . . . . . . . Heat Transferred 1392 | 148 111 . . 800 . 111 . . . . . . 222 . Parts Sabotaged . | . . . . . . . . . . . . . . . Parts Stolen . | . . . . . . . . . . . . . . . Parts Stripped . | . . . . . . . . . . . . . . . Power Chain Reactions 2 | . . . . 2 . . . . . . . . . . Alert | -11 -10 -9 -8 -7 -7 -7 -6 -6 -6 -5 -4 -3 -2 -2 ------- Run | Yrd Mat Mat Mat Fac Was Fac Fac Low Low Fac Fac Res Res Tes Maximum Alert Level 1 | . . . . . . 1 . . . . . . . . Low Security (%) 99 | 100 100 100 100 100 100 99 100 . . 100 100 100 100 100 Level 1 . | . . . . . . . . . . . . . . . Level 2 . | . . . . . . . . . . . . . . . Level 3 . | . . . . . . . . . . . . . . . Level 4 . | . . . . . . . . . . . . . . . Level 5 . | . . . . . . . . . . . . . . . High Security . | . . . . . . . . . . . . . . . Max Security . | . . . . . . . . . . . . . . . Peak Influence 203 | 10 47 107 38 67 7 203 110 . . 15 30 30 111 154 Initial 95 | . . . 38 2 7 . 95 . . . . 11 5 42 Average 32 | 1 19 35 13 18 . 36 70 . . . 6 6 51 72 Influence Increases 2535 | 25 57 211 54 249 . 604 85 240 15 19 150 48 399 379 Destroy 0b10 Robot/C 1660 | . 20 160 20 160 . 340 60 220 . . 100 20 300 260 Destroy 0b10 Robot/NC 120 | 25 5 10 . 15 . 40 . . . . . . 10 15 Destroy Leader 378 | . 2 32 10 42 . 126 10 20 . . 30 10 64 32 Successful Hack 66 | . . 9 9 10 . . . . . . 16 18 4 . Disable Machine 60 | . . . . . . 30 . . . . . . . 30 Destroy Structure 101 | . . . . 7 . 53 . . . 4 4 . 21 12 Partial Spotted 30 | . . . . . . 15 . . . 15 . . . . Lose Combat Pursuer 120 | . 30 . 15 15 . . 15 . 15 . . . . 30 Influence Decreases 2529 | 25 57 120 140 232 22 409 260 260 15 19 128 60 333 449 Entered New Map 229 | . . . 53 3 15 . 100 8 . . . 11 5 34 Time Decay 1817 | 25 57 120 87 169 7 366 150 192 15 19 78 49 248 235 Lost Part 483 | . . . . 60 . 43 10 60 . . 50 . 80 180 Squads Dispatched 22 | . 1 . . 3 . 4 2 . . 3 1 1 3 4 Investigation 6 | . 1 . . 2 . . 1 . . 1 . . . 1 Extermination 12 | . . . . 1 . 4 1 . . 1 . 1 2 2 Reinforcement 4 | . . . . . . . . . . 1 1 . 1 1 Assault . | . . . . . . . . . . . . . . . Garrison . | . . . . . . . . . . . . . . . Intercept . | . . . . . . . . . . . . . . . Searches Triggered . | . . . . . . . . . . . . . . . Construction Impeded . | . . . . . . . . . . . . . . . Haulers Reinforced 1 | . . . . . . . . . . . . . 1 . Active Scanning Responses . | . . . . . . . . . . . . . . . Cargo Convoy Interrupts . | . . . . . . . . . . . . . . . Stealth | -11 -10 -9 -8 -7 -7 -7 -6 -6 -6 -5 -4 -3 -2 -2 --------- Run | Yrd Mat Mat Mat Fac Was Fac Fac Low Low Fac Fac Res Res Tes Distress Signals 7 | . 1 2 1 1 . . . . . . . . 2 . Communications Jammed 62 | . . . . . . . . . . . 1 . 14 47 Distress Signals 60 | . . . . . . . . . . . 1 . 14 45 Times Spotted 142 | . 3 11 7 11 6 24 4 12 1 3 9 2 19 30 Peak Tracking Total 10 | . 4 4 4 3 6 4 3 4 1 2 7 1 5 10 Tactical Retreats 7 | . 2 . 1 1 . . 1 . 1 . . . . 1 Traps | -11 -10 -9 -8 -7 -7 -7 -6 -6 -6 -5 -4 -3 -2 -2 ------- Run | Yrd Mat Mat Mat Fac Was Fac Fac Low Low Fac Fac Res Res Tes Traps Triggered 10 | . 1 . . 1 . 2 1 . . . 3 1 . 1 Indirectly . | . . . . . . . . . . . . . . . Trap Hack Attempts . | . . . . . . . . . . . . . . . Triggered . | . . . . . . . . . . . . . . . Disarmed . | . . . . . . . . . . . . . . . Reprogrammed . | . . . . . . . . . . . . . . . Reused . | . . . . . . . . . . . . . . . Traps Extracted . | . . . . . . . . . . . . . . . Installed . | . . . . . . . . . . . . . . . Triggered . | . . . . . . . . . . . . . . . Machines | -11 -10 -9 -8 -7 -7 -7 -6 -6 -6 -5 -4 -3 -2 -2 ---------- Run | Yrd Mat Mat Mat Fac Was Fac Fac Low Low Fac Fac Res Res Tes Machines Disabled 4 | . . . . . . 2 . . . . . . . 2 Max in Single Turn 1 | . . . . . . 1 . . . . . . . 1 Machines Repaired . | . . . . . . . . . . . . . . . Machines Dismantled . | . . . . . . . . . . . . . . . Machines Sabotaged . | . . . . . . . . . . . . . . . Overloaded Fab Kills . | . . . . . . . . . . . . . . . Hacking | -11 -10 -9 -8 -7 -7 -7 -6 -6 -6 -5 -4 -3 -2 -2 --------- Run | Yrd Mat Mat Mat Fac Was Fac Fac Low Low Fac Fac Res Res Tes Machines Accessed 18 | . 1 2 2 2 . 2 2 1 . 2 1 1 1 1 Terminals 11 | . 1 2 2 . . 2 1 . . . 1 1 1 . Fabricators 1 | . . . . . . . . . . 1 . . . . Repair Stations 3 | . . . . . . . 1 . . 1 . . . 1 Recycling Units . | . . . . . . . . . . . . . . . Scanalyzers 1 | . . . . 1 . . . . . . . . . . Garrison Access 1 | . . . . 1 . . . . . . . . . . Total Hacks 45 | . 2 7 7 5 . 4 4 1 . 4 2 5 3 1 Successful 20 | . . 4 4 2 . . 3 1 . . 1 1 3 1 Failed 25 | . 2 3 3 3 . 4 1 . . 4 1 4 . . Catastrophic 4 | . . . . 1 . . 1 . . 2 . . . . Database Lockouts . | . . . . . . . . . . . . . . . Manual 14 | . 2 3 2 . . 1 2 . . 2 . . 1 1 Terminals 33 | . 2 7 7 . . 4 3 . . . 2 5 3 . Fabricators 2 | . . . . . . . . . . 2 . . . . Repair Stations 4 | . . . . . . . 1 . . 2 . . . 1 Recycling Units . | . . . . . . . . . . . . . . . Scanalyzers 3 | . . . . 3 . . . . . . . . . . Garrison Access 2 | . . . . 2 . . . . . . . . . . Terminal Hacks 10 | . . 2 2 . . . 1 1 . . 1 1 2 . Open Door 1 | . . . . . . . . 1 . . . . . . Level Access Points 1 | . . . . . . . . . . . . 1 . . Branch Access Points 2 | . . . 1 . . . . . . . 1 . . . Alert Level 2 | . . . . . . . 1 . . . . . 1 . Locate Traps 1 | . . . . . . . . . . . . . 1 . Maintenance Status 1 | . . . 1 . . . . . . . . . . . Hauler Manifests 1 | . . 1 . . . . . . . . . . . . Zone Layout 1 | . . 1 . . . . . . . . . . . . Fabricator Hacks . | . . . . . . . . . . . . . . . Repair Station Hacks . | . . . . . . . . . . . . . . . Recycling Unit Hacks . | . . . . . . . . . . . . . . . Scanalyzer 2 | . . . . 2 . . . . . . . . . . Insert Component 1 | . . . . 1 . . . . . . . . . . Analyze 1 | . . . . 1 . . . . . . . . . . Garrison Access Hacks . | . . . . . . . . . . . . . . . Unauthorized Hacks 8 | . . 2 2 . . . 2 . . . . . 1 1 Terminals 6 | . . 2 2 . . . 1 . . . . . 1 . Botnet 6 | . . 2 2 . . . 1 . . . . . 1 . Fabricators . | . . . . . . . . . . . . . . . Repair Stations 2 | . . . . . . . 1 . . . . . . 1 Patch 2 | . . . . . . . 1 . . . . . . 1 Recycling Units . | . . . . . . . . . . . . . . . Scanalyzers . | . . . . . . . . . . . . . . . Garrison Access . | . . . . . . . . . . . . . . . Data Cores Recovered 1 | . . 1 . . . . . . . . . . . . Used . | . . . . . . . . . . . . . . . Hacking Detections 13 | . 1 1 2 2 . 2 1 . . 2 . 1 1 . Full Trace Events 3 | . . . . 2 . . . . . 1 . . . . Feedback Events . | . . . . . . . . . . . . . . . Feedback Blocked . | . . . . . . . . . . . . . . . Robot Schematics Acquired . | . . . . . . . . . . . . . . . Robots Built . | . . . . . . . . . . . . . . . Authchips . | . . . . . . . . . . . . . . . Time . | . . . . . . . . . . . . . . . Total Robot Build Rating . | . . . . . . . . . . . . . . . Part Schematics Acquired 1 | . . . . 1 . . . . . . . . . . Parts Built . | . . . . . . . . . . . . . . . Authchips . | . . . . . . . . . . . . . . . Time . | . . . . . . . . . . . . . . . Total Part Build Rating . | . . . . . . . . . . . . . . . Parts Repaired . | . . . . . . . . . . . . . . . Time . | . . . . . . . . . . . . . . . Parts Recycled . | . . . . . . . . . . . . . . . Recycled Matter . | . . . . . . . . . . . . . . . Retrieved Matter . | . . . . . . . . . . . . . . . Retrieved Components . | . . . . . . . . . . . . . . . Parts Scanalyzed 1 | . . . . 1 . . . . . . . . . . Part Schematics Acquired 1 | . . . . 1 . . . . . . . . . . Parts Damaged . | . . . . . . . . . . . . . . . Bothacking | -11 -10 -9 -8 -7 -7 -7 -6 -6 -6 -5 -4 -3 -2 -2 ------------ Run | Yrd Mat Mat Mat Fac Was Fac Fac Low Low Fac Fac Res Res Tes Used RIF Installer . | . . . . . . . . . . . . . . . Robots Hacked . | . . . . . . . . . . . . . . . Non-combat . | . . . . . . . . . . . . . . . Combat . | . . . . . . . . . . . . . . . Robot Hacks Applied . | . . . . . . . . . . . . . . . Relay Couplers Released . | . . . . . . . . . . . . . . . Fabnet Peak Effective % . | . . . . . . . . . . . . . . . Robots Rewired . | . . . . . . . . . . . . . . . Allies Hacked . | . . . . . . . . . . . . . . . Hacks Repelled . | . . . . . . . . . . . . . . . Allies | -11 -10 -9 -8 -7 -7 -7 -6 -6 -6 -5 -4 -3 -2 -2 -------- Run | Yrd Mat Mat Mat Fac Was Fac Fac Low Low Fac Fac Res Res Tes Total Allies . | . . . . . . . . . . . . . . . Largest Group . | . . . . . . . . . . . . . . . Highest-Rated Group . | . . . . . . . . . . . . . . . Highest-Rated Ally . | . . . . . . . . . . . . . . . Total Orders . | . . . . . . . . . . . . . . . Ally Attacks . | . . . . . . . . . . . . . . . Total Damage . | . . . . . . . . . . . . . . . Kills . | . . . . . . . . . . . . . . . Allies Corrupted . | . . . . . . . . . . . . . . . Allies Melted . | . . . . . . . . . . . . . . . Intel | -11 -10 -9 -8 -7 -7 -7 -6 -6 -6 -5 -4 -3 -2 -2 ------- Run | Yrd Mat Mat Mat Fac Was Fac Fac Low Low Fac Fac Res Res Tes Active Infowar (turns) 4298 | 87 168 356 241 519 115 442 . . . 303 490 293 736 548 Optics 1083 | . . . . . . . . . . . . . 535 548 Sensors 755 | . . . . . . . . . . 303 452 . . . Terrain 81 | . . . . 81 . . . . . . . . . . Seismic 1928 | 87 168 356 241 519 115 442 . . . . . . . . Jamming 2087 | . . . . . . . . . . 119 482 293 719 474 Robot Analysis Total . | . . . . . . . . . . . . . . . Derelict Logs Recovered 2 | . . . . . . . . . 2 . . . . . Drone Launches . | . . . . . . . . . . . . . . . Drone Recoveries . | . . . . . . . . . . . . . . . Exploration | -11 -10 -9 -8 -7 -7 -7 -6 -6 -6 -5 -4 -3 -2 -2 ------------- Run | Yrd Mat Mat Mat Fac Was Fac Fac Low Low Fac Fac Res Res Tes Turns Passed 6296 | 148 168 356 241 519 138 1320 306 444 195 371 491 293 736 570 Spaces Moved 4218 | 82 123 191 152 282 132 972 264 329 195 329 308 211 374 274 Core 74 | 3 . . . . 46 . . . . . . . . 25 Treads . | . . . . . . . . . . . . . . . Legs 942 | 79 123 191 152 282 86 9 . . . . . . . 20 Wheels 3202 | . . . . . . 963 264 329 195 329 308 211 374 229 Hover . | . . . . . . . . . . . . . . . Flight . | . . . . . . . . . . . . . . . Fastest Speed 50 | 50 120 120 120 120 50 100 100 100 100 100 115 115 115 50 Average Speed 115 | 117 120 153 126 142 100 100 100 100 100 101 125 128 130 132 Slowest Speed 260 | 120 120 260 190 190 190 120 100 100 100 115 130 130 175 230 Overloaded Moves . | . . . . . . . . . . . . . . . Propulsion Burnouts . | . . . . . . . . . . . . . . . Robots Hopped . | . . . . . . . . . . . . . . . Potential Cave-ins 3 | . . . . . . . . . . 3 . . . . Cave-ins Triggered 1 | . . . . . . . . . . . . . . 1 Exploration Rate (%) 23 | 5 29 21 17 8 83 35 5 49 23 9 11 6 12 32 Regions Visited 14 Branch Regions 3 Pre-discovered Areas . | . . . . . . . . . . . . . . . Known Exits Taken 2 | . . . . . . . . . . 1 . 1 . . Unknown Exits Taken 10 | 1 1 1 1 . . 1 1 1 1 . 1 . 1 . Scrap Searched 3 | . . . . . . . . 1 2 . . . . . Spaces Dug 18 | . . . . . . 5 . . . 5 2 . 1 5 Terrain Destroyed 157 | . . . . 6 . 81 . 50 . 6 2 . 7 5 Melee 13 | . . . . . . 5 . . . . 2 . 1 5 Projectile 17 | . . . . . . 5 . . . 6 . . 6 . AOE 127 | . . . . 6 . 71 . 50 . . . . . . Terrain Rammed . | . . . . . . . . . . . . . . . Walls Destroyed . | . . . . . . . . . . . . . . . Machines Disabled . | . . . . . . . . . . . . . . . Actions | -11 -10 -9 -8 -7 -7 -7 -6 -6 -6 -5 -4 -3 -2 -2 --------- Run | Yrd Mat Mat Mat Fac Was Fac Fac Low Low Fac Fac Res Res Tes Total 5092 | 107 131 226 199 346 136 1190 295 400 195 356 381 222 520 388 Wait 271 | . . 3 29 12 2 73 19 29 . 7 33 . 32 32 Move 4205 | 81 122 190 151 282 131 971 263 328 194 328 307 210 373 274 Hop . | . . . . . . . . . . . . . . . Pick Up 78 | 7 1 6 3 4 . 21 2 3 1 2 7 1 16 4 Fast Attach 69 | 7 . 4 3 2 1 15 . 2 . 3 7 6 17 2 Attach 45 | . . . 1 4 2 7 3 3 . 1 4 . 8 12 Detach 4 | . . . . . . . . . . . . . 3 1 Swap 41 | 1 2 2 5 5 . 5 2 6 . 5 1 . 2 5 Drop 46 | . . 6 5 2 . 15 . 2 . 3 4 . 8 1 Fire 119 | 11 6 15 2 22 . 36 . 6 . 6 . . 15 . Melee 214 | . . . . 13 . 47 6 21 . 1 18 5 46 57 Ram . | . . . . . . . . . . . . . . . Kick . | . . . . . . . . . . . . . . . Crush . | . . . . . . . . . . . . . . . Escape Stasis . | . . . . . . . . . . . . . . . Rewire . | . . . . . . . . . . . . . . . Trap . | . . . . . . . . . . . . . . . Miscellaneous . | . . . . . . . . . . . . . . . Route ------- -11/Scrapyard -10/Materials -9/Materials -8/Materials -7/Factory -7/Waste -7/Factory -6/Factory (discovered 2 exits: *Fac / *Low) -6/Lower Caves -6/Lower Caves -5/Factory -4/Factory (discovered 3 exits: *Res / Upp x2) -3/Research (discovered 3 exits: *Res x3) -2/Research -2/Testing History --------- Turn | Location | Event 4 | -11/Scrapyard | Discovered new exit (range 16) 149 | -11/Scrapyard | Entered Materials 305 | -10/Materials | Build established: Mutant 306 | -10/Materials | Discovered new exit (range 8) 317 | -10/Materials | Entered another Materials area 317 | -9/Materials | Evolved 2 slots: Propulsion x1, Utility x1 607 | -9/Materials | Discovered new exit (range 15) 673 | -9/Materials | Entered another Materials area 673 | -8/Materials | Evolved 2 slots: Propulsion x1, Utility x1 878 | -8/Materials | Discovered new exit (range 10) 914 | -8/Materials | Entered Factory 914 | -7/Factory | Evolved 2 slots: Utility x1, Weapon x1 951 | -7/Factory | Build established: Scavenger-Mutant 1162 | -7/Factory | Lost 4 parts (1n1u2w) 1433 | -7/Factory | Sucked down chute 1433 | -7/Factory | Entered Waste 1445 | -7/Waste | Spotted C-40 Crusher 1448 | -7/Waste | EMP discharged 1486 | -7/Waste | Spotted C-40 Crusher 1491 | -7/Waste | Spotted C-40 Crusher 1515 | -7/Waste | Spotted C-40 Crusher 1528 | -7/Waste | Crushed by Compactor (1 part destroyed, 1 dropped) 1531 | -7/Waste | Spotted C-40 Crusher 1536 | -7/Waste | Spotted C-40 Crusher 1544 | -7/Waste | Crushed by Compactor (1 part destroyed, 2 dropped) 1547 | -7/Waste | Crushed by Compactor (1 part destroyed, 2 dropped) 1548 | -7/Waste | EMP discharged 1548 | -7/Waste | System corruption reached 10% 1548 | -7/Waste | Released all parts (4) 1564 | -7/Waste | Discovered new exit (range 12) 1571 | -7/Waste | Entered Factory 1578 | -7/Factory | Lost 4 parts (1p2n1w) 1823 | -7/Factory | Build established: Mutant 2295 | -7/Factory | Core integrity fell below 50% 2541 | -7/Factory | Build established: Gladiator 2888 | -7/Factory | Discovered new exit (range 4) 2891 | -7/Factory | Entered another Factory area 2891 | -6/Factory | Evolved 2 slots: Power x1, Utility x1 3151 | -6/Factory | Discovered new exit (range 9) 3182 | -6/Factory | Discovered new exit (range 16) 3197 | -6/Factory | Entered Lower Caves 3220 | -6/Lower Caves | Attracted the attention of an 0b10 checkpoint 3440 | -6/Lower Caves | Lost 6 parts (3p2n1w) 3627 | -6/Lower Caves | Discovered new exit (range 13) 3641 | -6/Lower Caves | Entered another Lower Caves area 3665 | -6/Lower Caves | Spotted B-75 Beast 3817 | -6/Lower Caves | Discovered new exit (range 6) 3825 | -6/Lower Caves | Learned location of 1 exit from Factory 3836 | -6/Lower Caves | Entered Factory 3836 | -5/Factory | Evolved 2 slots: Utility x2 3837 | -5/Factory | Identified exit to Factory 4207 | -5/Factory | Entered another Factory area 4207 | -4/Factory | Evolved 2 slots: Utility x1, Weapon x1 4235 | -4/Factory | Identified exit to Upper Caves 4343 | -4/Factory | Spotted B-86 Titan 4690 | -4/Factory | Discovered new exit (range 5) 4698 | -4/Factory | Entered Research 4698 | -3/Research | Evolved 2 slots: Utility x2 4704 | -3/Research | Lost 8 parts (2p2n2u2w) 4860 | -3/Research | Identified exit to Research 4991 | -3/Research | Entered another Research area 4991 | -2/Research | Evolved 2 slots: Utility x2 5085 | -2/Research | Lost 3 parts (1p2w) 5302 | -2/Research | Found Prototype Protection 5302 | -2/Research | Identified Centrium Heavy Armor Plating 5347 | -2/Research | Spotted B-90 Cyclops 5408 | -2/Research | Lost 3 parts (1n1u1w) 5451 | -2/Research | Destroyed B-90 Cyclops 5471 | -2/Research | Lost 3 parts (1p1u1w) 5480 | -2/Research | Found Prototype Device 5480 | -2/Research | Identified Exp. Transmission Jammer 5661 | -2/Research | Discovered new exit (range 6) 5727 | -2/Research | Entered Testing 5764 | -2/Testing | Build established: Scavenger-Gladiator 5805 | -2/Testing | Found Prototype Launcher 5805 | -2/Testing | Identified Com. Tesla Bomb Launcher 5886 | -2/Testing | Found Prototype Device 5886 | -2/Testing | Identified 2N-1CE's Frost Array 6026 | -2/Testing | Found Prototype Launcher 6026 | -2/Testing | Identified Tesla Bomb Launcher 6173 | -2/Testing | System corruption reached 10% 6226 | -2/Testing | Core integrity fell below 50% 6262 | -2/Testing | Lost 18 parts (4p4n9u1w) 6275 | -2/Testing | Released all parts (5) 6280 | -2/Testing | Core integrity fell below 20% 6296 | -2/Testing | Crushed by falling debris 6297 | -2/Testing | Destroyed by X-87 Electro with Compact HERF Cannon Last Messages --------------- 06267_ Myomer Leg destroyed. 06268_ Particle Reactor destroyed. 06268_ Myomer Leg destroyed. 06268_ Imp. Melee Analysis Suite destroyed. 06268_ Vibroblade destroyed. 06272_ G-73 Enforcer destroyed. 06275_ Biometal Leg destroyed. 06275_ Released Huge Storage Unit. 06275_ Released Adv. Visual Processing Unit. 06275_ Released Vibroblade. 06275_ Released Myomer Leg. 06279_ Door malfunctions. 06281_ System corrupted: Heat flow error (+193). 06282_ Door malfunctions. 06282_ P-80 Master resets G-73 Enforcer, system corruption cleaned. 06287_ Acquired Prototype Flight Unit. 06287_ Identified Imp. Diametric Drive. 06287_ Faulty integration triggers meltdown. 06296_ The unstable cave ceiling collapses. 06296_ Crushed by falling debris. Map ----- +----------------------------------------------------+ | | | | | | | | | | | | | ?????????????????????????????????????????????????? | | ?????????????????????????????????????????????????? | | ?????????????????????????????????????????????????? | | ????????????###??????????????????????????????????? | | ????????????#""??????????????????????????????????? | | ????????????#! """##?????????????????????????????? | | ????????????#" !"#?????????????????????????????? | | ??????###???#"" "#?????????????????????????????? | | ?????? #??#" "#?????????????????????????????? | | ?????? #???? ??????????????????????????????? | | ??????# #????##+##########??????????????????????? | | ??????# #?#### / """ #??????????????????????? | | ??????# #?# # ""T"" #??????????????????????? | | ??????+ #?# # "" "" #??????????????????????? | | ??????# #?# /gg #??????????????????????? | | ??????# #?#### # xx #??????????????????????? | | ??????# #????# # """x [ #??????????????????????? | | ??????# #????# # """ #??????????????????????? | | ??????# #????# # """ #??????????????????????? | | ??????# #????# # @#??????????????????????? | | ??????# #????# /######## #??????????????????????? | | ####??# #????#[[#??????##;########??????????????? | | "G""??# #????#/!#??????# = #??????????????? | | " "" ## ##???#=!#??????# #??????????????? | | # #####%*######## #??????????????? | | + "" /=]] # """ """ #??????????????? | | # T" ]= + """ """ #??????????????? | | # ###/######"#### """ """ #??????????????? | | ####?## ## ???? ?# #??????????????? | | ??????# ## ???# "" ## #??????????????? | | ??????# ##""????# "" ############??????????????? | | ??????# ##""????# "T #?????????????????????????? | | ??????# ##"?????# "" "?????????????????????????? | | ?????## #???????/ "" ""????????????????????????? | | ??##### #???????# S"???????????????????????? | | ??#!|!# #???????# """???????????????????????? | | ??#=[!#=[#???????# """ """???????????????????????? | | ??##=[#*!#???????????" ###???????????????????????? | | ???#%=%!!#???????????" #?????????????????????????? | | ???#====*#???????????? #?????????????????????????? | | ####%*[= #????????????##?????????????????????????? | | !![%!#???????????????????????????????????????? | | #######/##???????????????????????????????????????? | | ????? =%! ???????????????????????????????????????? | +----------------------------------------------------+ Best States ------------- Heat Dissipation 87 Coolant Potential 120 Energy Generation 41 Energy Capacity 480 Matter Stores 300 Matter Capacity 300 Sight Range 20 Robot Scan Range 16 Terrain Scan Range 16 Terrain Scan Density 10 Jamming Range 22 Armor Coverage 600 Resistance: TH 25 Resistance: EM 25 Power Shielding 66 Utility Shielding 66 Evasion (%) 55 Targeting Accuracy 8 Melee Accuracy 17 Kinecelleration 40 Item Schematics ----------------- Imp. Utility Shielding | -7/Factory | Scanalyzed Robot Schematics ------------------ None Fabricated ------------ Nothing Repaired ---------- Nothing Alien Tech Used ----------------- None Achievements -------------- None Challenges ------------ None Game ------ Seed ParticleDisruptorPendant Manual? 0 Play Time 00:42:15 Cumulative 186.8 hours Start 2025.07.23 @ 17:47:43 End 2025.07.23 @ 18:31:40 Sessions 1 Manual Loads 0 Difficulty Rogue Special Mode None Game No. 451 Rogue 451 Adventurer 0 Explorer 0 Win Type - Total 8 Types 6/0/1/1/0/0/0/0/0/0 Lore% 74 Gallery% 65 Achievement% 51 Wizard Run 0 Options --------- Layout 0 ASCII 0 Keyboard 0 Movement Numpad Keybinds 0 Fullscreen 2 Font 18/Terminus Map View 76x50 Zoom Use 0% Tactical HUD 1 Map Filters NONE Filters SATURATION(100) Steam 1 RUN: f7eb7740-e12b-4bdb-9bf5-7577ee84a2d8